bitfinex/quotes_ETHUSD_20241225
["timestamp","ask_amount","ask_price","bid_price","bid_amount"]
[1735120720565,2.48098238,3496.4,3495.7,3.55]
[1735120721160,3.68199018,3496.4,3495.7,3.55]
[1735120722465,2.19340075,3496.4,3495.7,3.55]
[1735120723672,0.99239295,3496.4,3495.7,3.55]
[1735120725478,3.68243659,3496.4,3495.7,3.55]
[1735120726473,0.99239295,3496.4,3495.7,3.55]
[1735120729417,3.68246796,3496.4,3495.7,3.55]
[1735120729577,3.68246796,3496.4,3496.0,3.4104]
[1735120729925,3.68246796,3496.4,3496.2,0.55]
[1735120730059,3.68246796,3496.4,3496.2,3.55]
[1735120730659,0.99239295,3496.7,3496.2,3.55]
[1735120731471,0.99239295,3496.7,3496.3,0.7693]
[1735120731655,0.99239295,3496.7,3496.4,0.55]
[1735120732108,2.48162721,3496.7,3496.4,0.55]
[1735120733296,0.99239295,3496.7,3496.2,0.55]
[1735120733617,1.80589295,3496.7,3496.2,0.55]
[1735120734000,1.80589295,3496.7,3496.0,3.0]
[1735120734001,2.85993,3496.6,3496.0,3.0]
[1735120734615,2.85993,3496.6,3495.9,0.7693]
[1735120735458,2.85993,3496.6,3496.0,0.55]
[1735120735765,3.68268805,3496.5,3496.0,0.55]
[1735120736633,3.68268805,3496.5,3496.0,0.57860282]
[1735120736938,3.68268805,3496.5,3496.0,3.55]
[1735120737106,3.68268805,3496.5,3496.0,4.267977]
[1735120737299,3.68268805,3496.6,3496.0,4.267977]
[1735120737501,3.68268805,3496.6,3496.3,0.55]
[1735120738237,3.68268805,3496.6,3496.4,0.55]
[1735120738443,3.68268805,3496.6,3496.5,0.7693]
[1735120738589,2.96920638,3496.9,3496.5,0.7693]
[1735120738590,0.57581606,3496.9,3496.5,1.3193]
[1735120738789,0.57581606,3496.9,3496.6,0.55]
[1735120739950,0.57581606,3496.9,3496.3,0.55]
[1735120741507,0.8135,3496.8,3496.3,0.55]
[1735120741811,3.29563305,3496.8,3496.3,0.55]
[1735120743145,2.48213305,3496.7,3496.3,0.55]
[1735120744249,5.34198305,3496.7,3496.1,8.82]
[1735120744430,5.05371102,3496.7,3496.1,8.82]
[1735120744760,6.21862324,3496.7,3496.1,8.82]
[1735120745700,3.68322484,3496.6,3496.1,8.82]
[1735120746442,3.68322484,3496.6,3495.8,0.55]
[1735120746943,5.82627392,3496.7,3495.8,0.55]
[1735120746944,3.68322484,3496.5,3495.8,0.55]
[1735120750347,0.99285322,3496.5,3496.0,0.55]
[1735120750550,0.99285322,3496.5,3495.9,0.55]
[1735120751849,0.99285322,3496.5,3495.9,1.98407853]
[1735120752370,0.99285322,3496.5,3496.0,3.7640036]
[1735120752563,0.99285322,3496.5,3496.1,1.3682]
[1735120753418,1.8015117,3496.8,3496.1,3.75811296]
[1735120753419,2.48221704,3496.7,3496.1,3.75811296]
[1735120753803,2.48221704,3496.7,3496.3,0.55]
[1735120754155,2.43221704,3496.7,3496.3,0.55]
[1735120754366,2.43221704,3496.7,3496.3,2.86015]
[1735120754506,2.43221704,3496.7,3496.4,0.55]
[1735120755015,1.77682386,3496.9,3496.4,0.55]
[1735120755204,1.77682386,3496.9,3496.3,0.74832277]
[1735120755205,1.77682386,3496.9,3496.2,0.55]
[1735120756156,0.99277158,3496.8,3496.2,0.55]
[1735120757218,0.94277158,3496.8,3496.2,0.55]
[1735120757418,2.14377938,3496.8,3496.2,0.55]
[1735120758829,0.8144,3496.7,3496.2,0.55]
[1735120759025,0.8144,3496.7,3495.9,8.82]
[1735120760082,1.2010078,3496.8,3495.9,8.82]
[1735120760083,2.86002,3496.5,3495.9,8.82]
[1735120760386,0.8144,3496.4,3495.9,8.82]
[1735120761091,0.8144,3496.0,3495.6,1.19129743]
[1735120762194,0.8144,3496.0,3495.2,1.19129743]
[1735120762544,3.42481,3496.0,3495.3,0.55]
[1735120763500,4.6258178,3496.0,3495.3,0.55]
[1735120764396,1.7654078,3496.0,3495.3,0.55]
[1735120764695,2.32534065,3496.0,3495.3,0.55]
[1735120765504,1.7654078,3496.0,3495.3,1.271493]
[1735120765702,1.2010078,3496.0,3495.6,0.8038]
[1735120765882,1.2010078,3496.0,3495.7,3.0]
[1735120766258,1.2010078,3496.1,3495.7,3.0]
[1735120766456,1.2010078,3496.1,3495.8,0.666447]
[1735120767008,1.0,3496.0,3495.8,0.666447]
[1735120767156,1.0,3496.0,3495.9,0.8038]
[1735120767557,1.0,3496.0,3495.9,3.8038]
[1735120768578,1.0,3496.0,3495.9,15.51289231]
[1735120768869,1.0,3496.0,3495.9,15.48429]
[1735120769406,1.0,3496.0,3495.9,12.775374]
[1735120770894,1.0,3496.0,3495.9,11.82]
[1735120772310,1.0,3496.0,3495.9,8.82]
[1735120772459,1.0,3496.0,3495.5,1.19129743]
[1735120772665,0.7665,3495.9,3495.5,1.19129743]
[1735120773267,0.7665,3495.9,3495.4,2.01179743]
[1735120773462,0.7665,3495.9,3495.5,0.66597136]
[1735120774010,0.7665,3495.9,3495.5,3.66597136]
[1735120775018,0.7665,3495.9,3495.5,0.66597136]
[1735120775220,0.76305721,3495.9,3495.5,0.66597136]
[1735120775386,1.0,3496.0,3495.5,0.66597136]
[1735120775571,1.0,3496.0,3495.6,3.44864714]
[1735120775777,1.0,3496.0,3495.6,0.44864714]
[1735120776005,1.0,3496.0,3495.8,2.86057]
[1735120776320,1.0,3496.0,3495.9,2.86049]
[1735120778502,1.0,3496.0,3495.7,0.8205]
[1735120778818,1.0,3496.0,3495.8,2.86056]
[1735120781437,1.0,3496.0,3495.7,0.8205]
[1735120781649,1.0,3496.0,3495.6,8.82]
[1735120781802,1.0,3496.0,3495.6,11.68072]
[1735120781996,0.7665,3495.9,3495.6,8.82]
[1735120782194,1.0,3496.0,3495.9,6.68099]
[1735120783096,1.0,3496.0,3495.9,0.8205]
[1735120783609,1.0,3496.0,3495.9,1.77584266]
[1735120783811,1.0,3496.0,3495.9,5.65861967]
[1735120784538,1.0,3496.0,3495.9,4.70327701]
[1735120784747,1.0,3496.0,3495.9,1.70327701]
[1735120785590,1.0,3496.0,3495.9,2.25327701]
[1735120786253,1.0,3496.0,3495.9,5.25327701]
[1735120786401,1.0,3496.0,3495.9,8.11376701]
[1735120786740,1.0,3496.0,3495.9,2.25327701]
[1735120787548,1.0,3496.0,3495.9,1.43277701]
[1735120788410,1.0,3496.0,3495.8,0.55]
[1735120788831,1.0,3496.0,3495.7,0.55]
[1735120793556,1.0,3496.0,3495.7,3.41061]
[1735120794420,1.0,3496.0,3495.9,0.55]
[1735120795956,1.0,3496.0,3495.7,0.55]
[1735120796272,1.0,3496.0,3495.9,0.55]
[1735120796526,1.0,3496.0,3495.7,0.55]
[1735120797711,1.7957,3496.0,3495.7,0.55]
[1735120799219,1.0,3496.0,3495.7,0.55]
[1735120799519,1.0,3496.0,3495.7,3.41063]
[1735120799676,1.0,3496.0,3495.7,0.55]
[1735120799876,1.0,3496.0,3495.9,0.55]
[1735120803939,1.0,3496.0,3495.7,0.55]
[1735120804301,0.792,3495.9,3495.5,4.19129743]
[1735120804502,0.792,3495.9,3495.5,1.19129743]
[1735120806104,0.792,3495.9,3495.6,0.55]
[1735120807123,0.792,3495.9,3495.4,3.8]
[1735120807508,0.792,3495.9,3495.4,3.0]
[1735120809662,0.792,3495.9,3495.2,4.19129743]
[1735120809862,0.792,3495.8,3495.2,4.19129743]
[1735120810350,0.792,3495.8,3495.5,0.95686625]
[1735120811213,0.792,3495.8,3495.3,0.95686625]
[1735120812356,0.792,3495.8,3495.2,2.39243327]
[1735120813626,0.792,3495.8,3495.1,2.39243327]
[1735120814531,0.792,3495.7,3495.1,2.39243327]
[1735120814861,0.792,3495.6,3495.1,2.39243327]
[1735120815162,0.792,3495.6,3494.9,8.82]
[1735120815696,2.8609,3495.4,3494.8,1.19129743]
[1735120815851,0.7912,3495.5,3494.8,1.19129743]
[1735120816051,1.43017094,3495.5,3494.8,1.19129743]
[1735120816488,0.7912,3495.4,3494.7,4.19129743]
[1735120817093,0.7912,3495.4,3494.7,1.19129743]
[1735120817309,1.34040087,3495.4,3494.7,1.19129743]
[1735120817996,4.20132087,3495.4,3494.5,4.99129743]
[1735120818220,0.7912,3495.3,3494.5,1.19129743]
[1735120818518,0.7912,3495.1,3494.5,1.19129743]
[1735120818650,1.156431,3495.1,3494.5,1.19129743]
[1735120818854,0.7912,3495.1,3494.5,1.19129743]
[1735120819481,0.7912,3495.1,3494.5,2.39116203]
[1735120820410,2.86123,3495.0,3494.5,2.39116203]
[1735120820724,0.7912,3494.9,3494.5,2.39116203]
[1735120821029,0.7912,3494.9,3494.2,1.19129743]
[1735120822131,0.7912,3494.9,3494.2,2.78329328]
[1735120822433,0.7912,3494.9,3494.2,1.59199585]
[1735120822814,0.7912,3494.9,3494.2,0.82229585]
[1735120823314,1.77793802,3495.3,3494.5,0.7697]
[1735120823315,0.7912,3495.2,3494.5,0.7697]
[1735120824320,0.7912,3495.2,3494.5,3.63131]
[1735120824529,0.7912,3495.2,3494.5,3.99730238]
[1735120825506,0.7912,3495.2,3494.6,2.86154]
[1735120826994,0.7912,3495.2,3494.5,0.36599238]
[1735120827640,0.7912,3495.2,3494.5,3.36599238]
[1735120830377,3.65229,3495.2,3494.5,3.0]
[1735120830641,0.768,3495.1,3494.2,3.0]
[1735120831726,0.768,3495.1,3494.2,5.86186]
[1735120831888,0.768,3495.1,3494.2,3.0]
[1735120832094,0.768,3495.6,3494.2,3.0286131]
[1735120832294,1.2010078,3495.7,3495.2,3.0]
[1735120832841,1.2010078,3495.7,3495.6,5.86073]
[1735120832991,1.2010078,3495.7,3495.6,6.63763]
[1735120834844,1.0,3496.0,3495.6,6.63763]
[1735120835046,1.0,3496.0,3495.7,0.46705506]
[1735120838948,1.0,3496.0,3495.9,0.7769]
[1735120839099,1.0,3496.0,3495.9,6.63739]
[1735120840408,1.0,3496.0,3495.9,15.45739]
[1735120841828,1.0,3496.0,3495.9,17.9204236]
[1735120847235,1.0,3496.0,3495.9,16.44260344]
[1735120849840,1.0,3496.0,3495.9,15.45739]
[1735120856252,1.0,3496.0,3495.9,15.41085911]
[1735120857876,1.0,3496.0,3495.9,50.41085911]
[1735120859690,1.0,3496.0,3495.9,15.41085911]
[1735120860158,1.0,3496.0,3495.9,50.41085911]
[1735120861762,1e-05,3496.0,3495.9,50.41085911]
[1735120862977,1e-05,3496.0,3495.9,52.86623296]
[1735120863147,1e-05,3496.0,3495.9,17.86623296]
[1735120863546,1e-05,3496.0,3495.9,52.86623296]
[1735120864085,1e-05,3496.0,3495.9,17.86623296]
[1735120864436,1e-05,3496.0,3495.9,16.39300865]
[1735120865410,1e-05,3496.0,3495.9,15.41085911]
[1735120867063,1e-05,3496.0,3495.9,14.68049]
[1735120868328,1e-05,3496.0,3495.9,15.45879]
[1735120869485,1e-05,3496.0,3495.9,16.00879]
[1735120869938,1e-05,3496.0,3495.9,22.21675743]
[1735120870969,1e-05,3496.0,3495.9,57.21675743]
[1735120871531,1e-05,3496.0,3495.9,22.21675743]
[1735120871768,1e-05,3496.0,3495.9,18.46491293]
[1735120873017,0.73181251,3497.1,3496.7,2.85975]
[1735120873170,0.73181251,3497.1,3496.8,0.55]
[1735120873371,0.73181251,3497.1,3496.8,3.55]
[1735120879720,0.73181251,3497.1,3496.8,0.55]
[1735120879925,0.73181251,3497.1,3496.6,0.55]
[1735120881216,3.6759,3496.9,3496.5,4.18958478]
[1735120881529,0.8162,3496.8,3496.3,1.18958478]
[1735120883303,0.8162,3496.8,3496.2,0.55]
[1735120885105,0.8162,3496.8,3496.1,0.55]
[1735120885308,0.8162,3496.8,3496.5,0.55]
[1735120887021,0.8162,3496.8,3496.5,3.40998]
[1735120887319,0.8162,3496.8,3496.7,0.55]
[1735120888397,0.8162,3496.8,3496.7,1.5373141]
[1735120889701,0.8162,3496.8,3496.7,0.55]
[1735120890105,0.8162,3496.8,3496.6,0.55]
[1735120891089,0.8162,3496.8,3496.4,1.18958478]
[1735120891287,2.85986,3496.7,3496.4,1.18958478]
[1735120891522,3.62236,3496.7,3496.6,0.98732076]
[1735120892333,0.7625,3496.6,3495.8,2.46910777]
[1735120892883,0.7625,3496.6,3495.8,5.46910777]
[1735120893326,1.67214224,3496.6,3495.8,5.46910777]
[1735120893530,1.75111717,3496.5,3495.8,3.0]
[1735120893701,0.7625,3496.4,3495.7,2.46910777]
[1735120894223,0.7625,3496.1,3495.7,2.46910777]
[1735120894660,0.7625,3495.9,3495.7,2.46910777]
[1735120895223,0.7625,3495.9,3495.3,2.86097]
[1735120896079,0.7625,3495.9,3495.4,3.0]
[1735120896362,0.7625,3495.9,3495.1,7.05071478]
[1735120896750,0.7625,3495.8,3495.1,4.18958478]
[1735120897068,0.7625,3495.7,3495.1,3.0]
[1735120898483,0.56238813,3496.3,3495.0,1.18958478]
[1735120898484,0.7625,3495.5,3495.0,1.18958478]
[1735120898816,0.7625,3495.5,3494.9,3.0]
[1735120899131,0.7625,3495.5,3494.7,3.0]
[1735120899351,0.7617,3495.5,3494.7,3.0]
[1735120901360,0.7617,3495.5,3494.9,2.8613]
[1735120901568,0.7617,3495.5,3495.0,3.0]
[1735120902821,0.7617,3495.5,3494.8,3.0]
[1735120903246,0.7617,3495.5,3494.8,5.86137]
[1735120903644,0.7617,3495.5,3494.8,5.81137]
[1735120904370,0.7617,3495.5,3494.9,2.86128]
[1735120905623,0.7617,3495.5,3495.0,3.0]
[1735120906665,0.7617,3495.5,3495.0,2.86122]
[1735120908280,0.7617,3495.5,3494.9,3.0]
[1735120908829,0.7617,3495.5,3495.0,3.0]
[1735120911189,0.7617,3495.5,3495.0,2.8612]
[1735120911485,0.7617,3495.5,3495.1,0.55]
[1735120913390,0.7617,3495.5,3495.1,2.86111]
[1735120913689,0.7617,3495.5,3495.2,0.55]
[1735120914679,0.7617,3495.5,3494.9,0.55]
[1735120915048,0.7978,3495.4,3494.9,0.55]
[1735120915252,0.7978,3495.3,3494.9,0.55]
[1735120920987,0.7978,3495.3,3494.7,3.55]
[1735120922263,0.7978,3495.3,3494.7,0.55]
[1735120925409,0.7978,3495.3,3494.4,6.41171]
[1735120926086,0.7978,3495.3,3494.6,3.55]
[1735120926702,0.7978,3495.3,3494.4,3.0]
[1735120926907,0.7877,3495.1,3494.5,0.55]
[1735120928120,0.7877,3495.0,3494.2,3.0]
[1735120928262,0.7877,3494.9,3494.2,3.0]
[1735120929007,0.7877,3494.9,3494.0,2.86204]
[1735120929708,2.86148,3494.7,3493.6,2.86235]
[1735120929872,0.7877,3494.6,3493.6,2.86235]
[1735120930073,3.64925,3494.6,3493.7,3.0]
[1735120930292,0.7877,3494.4,3493.4,8.82]
[1735120930456,2.86174,3494.4,3493.4,8.82]
[1735120930662,0.7877,3494.3,3493.4,8.82]
[1735120931313,2.86189,3494.2,3493.4,8.82]
[1735120931456,0.7877,3494.1,3493.2,2.8627]
[1735120932357,0.7877,3493.9,3493.0,1.18958478]
[1735120932848,0.7877,3493.9,3492.8,11.683]
[1735120933207,0.7877,3493.9,3492.9,2.86292]
[1735120933627,0.7877,3493.9,3493.0,3.0]
[1735120934657,0.7877,3493.9,3493.2,2.86264]
[1735120935011,0.7877,3493.9,3493.0,0.8067]
[1735120935209,0.7877,3493.9,3493.3,2.86261]
[1735120936243,0.7877,3493.9,3493.3,2.81261]
[1735120936699,0.7877,3493.9,3493.1,5.86277]
[1735120938029,0.7877,3493.9,3493.1,3.0]
[1735120938227,0.7877,3493.9,3493.2,2.86269]
[1735120940357,0.7743,3493.8,3493.2,2.86269]
[1735120944719,0.7743,3493.8,3493.0,2.86284]
[1735120944923,0.7743,3493.8,3493.1,3.0]
[1735120945225,0.7743,3493.6,3493.1,3.0]
[1735120947313,0.7923,3494.0,3493.7,2.86229]
[1735120947514,0.7923,3494.0,3493.8,2.8622]
[1735120947716,0.7923,3494.3,3493.4,2.86254]
[1735120947904,0.7923,3494.3,3494.1,2.86189]
[1735120948417,0.7923,3494.3,3493.9,2.86212]
[1735120950018,0.7923,3494.9,3494.0,2.86204]
[1735120950167,0.43986548,3494.8,3494.0,2.86204]
[1735120951028,3.65362,3494.9,3493.8,2.86218]
[1735120952639,0.818,3494.7,3493.6,11.68234]
[1735120952842,0.818,3494.7,3493.6,8.82]
[1735120952987,0.36794,3494.6,3493.6,8.82]
[1735120953654,0.36794,3494.6,3493.7,0.55]
[1735120953851,0.36794,3494.6,3493.7,3.41227]
[1735120954006,0.818,3494.7,3493.9,0.55]
[1735120954946,0.818,3494.7,3493.9,2.86212]
[1735120955149,0.818,3494.7,3494.0,0.55]
[1735120956173,0.818,3494.7,3494.0,2.86204]
[1735120959480,0.818,3494.7,3493.7,0.55]
[1735120959628,0.818,3494.7,3493.8,2.86219]
[1735120959974,0.818,3494.5,3493.9,0.55]
[1735120960135,0.818,3494.5,3493.6,3.0]
[1735120960336,0.818,3494.5,3493.5,8.82]
[1735120960656,2.86199,3494.1,3493.2,1.18958478]
[1735120960863,0.818,3493.9,3493.2,1.18958478]
[1735120961420,0.818,3493.8,3493.2,1.18958478]
[1735120961777,0.818,3493.7,3492.7,4.05267478]
[1735120962086,0.818,3493.7,3492.9,2.8629]
[1735120963140,0.818,3493.7,3492.8,0.55]
[1735120963405,0.818,3493.5,3492.8,0.55]
[1735120964090,0.818,3493.5,3492.9,3.0]
[1735120964441,0.818,3493.5,3492.7,3.55]
[1735120964655,0.818,3493.5,3493.0,2.86286]
[1735120965241,0.818,3493.5,3492.8,2.863]
[1735120965441,0.818,3493.5,3492.9,3.55]
[1735120966055,0.818,3493.5,3492.9,3.0]
[1735120966487,0.8198,3493.4,3492.9,3.0]
[1735120968041,0.8198,3493.4,3492.7,3.0]
[1735120968291,0.8198,3493.4,3492.9,2.86289]
[1735120969270,0.8198,3493.4,3493.1,2.86276]
[1735120969606,0.8198,3493.4,3493.2,0.55]
[1735120970269,0.8198,3493.4,3492.9,3.55]
[1735120970588,0.8198,3493.4,3493.2,2.86268]
[1735120971175,0.8198,3494.0,3493.2,2.86268]
[1735120971457,0.42662195,3493.9,3493.2,2.86268]
[1735120972907,0.8198,3493.8,3492.9,9.37]
[1735120973203,0.8198,3493.8,3493.1,0.55]
[1735120976608,0.8198,3493.8,3493.1,2.00443733]
[1735120977910,0.8198,3493.8,3493.1,1.45443733]
[1735120978202,0.8198,3493.8,3492.9,1.18958478]
[1735120978360,0.8198,3493.6,3492.9,4.18958478]
[1735120979665,0.8198,3493.6,3492.9,3.0]
[1735120980997,0.8198,3493.6,3492.7,1.18958478]
[1735120981192,0.8198,3493.6,3492.7,4.05264478]
[1735120981512,0.8198,3493.6,3493.1,2.86273]
[1735120985136,0.8198,3493.6,3492.9,2.86291]
[1735120985316,1.187993,3493.6,3492.9,2.86291]
[1735120986358,1.187993,3493.6,3493.2,2.86269]
[1735120986359,0.8198,3493.6,3493.2,2.86269]
[1735120987414,0.8198,3493.6,3493.3,2.8626]
[1735120987618,0.8198,3494.0,3493.6,2.86233]
[1735120988257,0.8198,3494.0,3493.6,2.8366621]
[1735120988920,0.8198,3494.0,3493.4,2.86251]
[1735120990477,0.8198,3494.0,3493.5,2.86244]
[1735120991082,0.8198,3494.0,3493.5,3.83172343]
[1735120992095,0.8198,3494.0,3493.5,2.86244]
[1735120992392,0.8198,3494.0,3493.3,4.18958478]
[1735120992393,0.8198,3494.0,3493.6,2.86236]
[1735120993496,0.8198,3494.0,3493.6,3.83155622]
[1735120994058,0.8198,3494.7,3493.9,2.86212]
[1735120995092,2.0208078,3494.7,3493.9,2.86212]
[1735120995635,2.0208078,3494.7,3494.2,2.8618]
[1735120996577,0.8198,3494.7,3494.2,2.8618]
[1735120998045,0.8198,3494.7,3494.3,5.86179]
[1735120998768,0.8198,3494.7,3494.4,2.86171]
[1735120998972,0.8046,3495.0,3494.5,2.86163]
[1735120999179,0.8046,3495.0,3494.4,0.7801]
[1735120999589,0.8046,3495.0,3494.4,0.55]
[1735121000816,0.8046,3495.0,3494.2,0.55]
[1735121001017,0.8046,3495.0,3494.5,2.8616]
[1735121004226,0.8046,3495.0,3494.2,0.55]
[1735121004396,0.8046,3495.0,3494.3,2.86172]
[1735121007095,0.8046,3495.0,3494.1,14.68194]
[1735121007336,0.8046,3495.0,3494.1,11.68194]
[1735121007510,0.366577,3494.9,3494.1,8.82]
[1735121007712,0.8046,3494.8,3494.1,8.82]
[1735121007926,0.8046,3494.8,3493.9,4.05168478]
[1735121008246,0.8046,3494.6,3493.6,1.18958478]
[1735121008536,3.0,3495.4,3493.6,1.18958478]
[1735121008537,0.8046,3494.5,3493.6,1.18958478]
[1735121008837,0.8046,3494.3,3493.6,1.18958478]
[1735121009625,0.8046,3494.3,3493.4,2.86253]
[1735121009784,0.8046,3494.1,3493.5,3.0]
[1735121010839,0.8046,3494.1,3493.3,3.0]
[1735121012227,0.8046,3494.1,3493.0,2.86285]
[1735121012440,0.8292,3494.0,3493.0,2.86285]
[1735121012648,2.86198,3494.1,3492.8,4.05259478]
[1735121012649,0.8292,3494.1,3492.8,4.05259478]
[1735121012939,0.8292,3494.0,3492.8,4.05259478]
[1735121013093,2.86222,3493.8,3492.8,4.05259478]
[1735121013293,0.8292,3493.7,3492.8,4.05259478]
[1735121014083,0.8292,3493.7,3492.9,3.0]
[1735121016308,0.8292,3493.7,3493.5,2.86245]
[1735121016511,1.77137343,3494.3,3493.7,2.86228]
[1735121016512,0.8292,3494.0,3493.7,2.86228]
[1735121017030,0.8292,3494.0,3493.8,2.86219]
[1735121017232,1.2010078,3494.3,3494.0,2.86202]
[1735121017450,0.8292,3494.4,3494.0,2.86202]
[1735121017948,1.2010078,3494.5,3494.0,0.365382]
[1735121018118,1.2010078,3494.5,3494.4,2.86172]
[1735121018630,1.2010078,3494.5,3494.4,5.86172]
[1735121018831,2.39339032,3494.8,3494.4,5.86172]
[1735121019014,0.8292,3495.3,3494.7,2.86147]
[1735121019332,0.8292,3495.3,3494.8,2.86139]
[1735121019713,0.8292,3495.3,3494.4,12.76524737]
[1735121020014,0.8292,3495.3,3494.6,2.86154]
[1735121021157,0.8292,3495.3,3494.4,11.82]
[1735121021377,0.8292,3496.1,3495.1,2.86106]
[1735121021657,0.8292,3496.1,3495.4,2.86089]
[1735121022625,0.8292,3496.1,3495.0,2.8897689]
[1735121022849,0.8292,3496.1,3495.8,2.86055]
[1735121023032,1.2010078,3496.2,3495.6,0.7918]
[1735121023224,1.2010078,3496.2,3496.1,2.86033]
[1735121023462,0.8292,3496.5,3496.1,2.86033]
[1735121023823,0.8292,3496.5,3496.3,2.86016]
[1735121024030,1.2010078,3496.8,3496.0,2.86041]
[1735121024226,1.2010078,3496.8,3496.5,2.85993]
[1735121024443,1.2010078,3496.8,3496.6,2.85989]
[1735121024624,1.2010078,3496.8,3496.7,2.85983]
[1735121025275,0.8292,3497.3,3496.7,2.85983]
[1735121025447,1.2010078,3497.6,3496.9,2.85963]
[1735121026554,0.7953,3497.7,3496.9,2.85963]
[1735121026729,0.7953,3497.7,3496.7,3.0]
[1735121026925,0.7953,3497.7,3496.8,2.85967]
[1735121030072,0.8244,3497.5,3496.5,11.82]
[1735121030229,0.36835,3497.4,3496.5,11.82]
[1735121030666,0.8244,3497.5,3496.5,14.67999]
[1735121031464,0.8244,3497.5,3496.5,11.82]
[1735121031704,0.8244,3497.5,3496.6,2.85992]
[1735121034812,0.8244,3497.5,3496.5,3.0]
[1735121036110,0.8244,3497.2,3496.1,2.86031]
[1735121036874,3.68385,3497.2,3496.1,2.86031]
[1735121037731,2.85945,3497.2,3496.1,2.86031]
[1735121037866,0.8244,3497.0,3496.0,3.0]
[1735121038070,0.8244,3497.0,3495.9,3.0]
[1735121038714,2.85972,3496.9,3495.9,3.0]
[1735121038918,1.110372,3496.8,3495.9,3.0]
[1735121039073,1.05354758,3496.8,3495.9,3.0]
[1735121039275,0.76757558,3496.8,3495.9,3.0]
[1735121039877,0.76757558,3496.8,3496.0,0.55]
[1735121040396,0.76757558,3496.8,3496.3,2.86016]
[1735121040584,0.76757558,3496.8,3496.5,2.85999]
[1735121042239,0.76757558,3496.8,3496.3,2.86014]
[1735121042409,0.76757558,3496.8,3496.3,3.432189]
[1735121042612,0.76757558,3496.8,3496.3,0.572049]
[1735121042911,0.8306,3496.7,3495.8,3.0]
[1735121043677,0.8306,3496.7,3495.8,5.86054]
[1735121044071,0.8306,3496.7,3495.6,5.86072]
[1735121045030,0.8306,3496.5,3495.6,5.86072]
[1735121046016,0.8306,3496.5,3495.5,3.0]
[1735121046177,0.8306,3496.4,3495.5,3.0]
[1735121046733,3.69068,3496.4,3495.5,3.0]
[1735121046936,0.8306,3496.3,3495.5,3.0]
[1735121047493,0.8306,3496.3,3495.5,2.86074]
[1735121047815,0.8306,3496.3,3495.6,3.0]
[1735121049477,0.8306,3496.3,3495.2,3.0]
[1735121049674,0.8306,3496.3,3495.6,2.86069]
[1735121050322,0.8306,3496.3,3495.6,3.146759]
[1735121053463,0.7511,3496.9,3496.0,2.86033]
[1735121053668,0.7511,3496.9,3495.7,0.7514]
[1735121053802,0.7511,3496.9,3496.1,2.8603]
[1735121054965,0.7511,3496.9,3496.3,2.86016]
[1735121055174,0.7511,3496.9,3496.5,2.85999]
[1735121057481,0.8178,3497.3,3496.6,2.8599]
[1735121057772,0.8178,3497.3,3496.7,2.85976]
[1735121058445,0.8178,3497.3,3496.5,8.82]
[1735121058446,2.85945,3497.2,3496.5,8.82]
[1735121058651,0.8178,3497.1,3496.5,8.82]
[1735121059477,0.8178,3497.0,3495.7,9.5969]
[1735121059762,2.85914,3497.6,3495.8,3.0]
[1735121059763,2.85983,3496.8,3495.8,3.0]
[1735121059969,0.8178,3496.7,3495.8,3.0]
[1735121060343,0.8178,3496.7,3495.7,2.86062]
[1735121060516,0.8178,3496.7,3495.8,1.1966689]
[1735121061678,2.85919,3497.5,3496.4,2.86007]
[1735121061890,0.8178,3497.4,3496.4,2.86007]
[1735121062672,0.8178,3497.4,3496.2,3.55]
[1735121062875,0.8178,3497.4,3496.3,0.45524747]
[1735121063275,0.8178,3497.4,3496.5,2.85993]
[1735121065056,0.8178,3497.4,3496.3,0.45524747]
[1735121065262,0.8178,3497.4,3496.6,2.85987]
[1735121065913,0.8178,3497.4,3496.4,8.82]
[1735121066125,0.8178,3497.4,3496.7,2.8598]
[1735121066761,0.8178,3497.4,3496.7,0.80549547]
[1735121067008,0.8178,3497.4,3496.7,0.7769]
[1735121067236,0.8178,3497.4,3496.9,2.8596]
[1735121069204,0.8178,3497.9,3496.7,0.7769]
[1735121069418,0.8178,3497.9,3497.1,2.85951]
[1735121069624,0.8178,3497.9,3496.9,2.85966]
[1735121069837,0.8178,3497.9,3497.0,2.85958]
[1735121070456,0.8178,3497.9,3497.1,2.85946]
[1735121071357,0.8178,3497.9,3496.8,0.45524747]
[1735121071559,0.8178,3497.9,3496.9,3.56885075]
[1735121075226,0.8178,3497.9,3496.9,0.70920075]
[1735121075437,0.8178,3497.9,3497.0,2.85951]
[1735121076168,0.8178,3497.9,3496.9,0.73779401]
[1735121076306,0.8178,3497.9,3497.2,2.85941]
[1735121076514,0.8178,3497.9,3497.2,3.2191304]
[1735121076871,0.8178,3497.9,3497.3,0.02859196]
[1735121077051,0.8178,3497.9,3497.2,0.3597204]
[1735121077228,0.8178,3497.9,3497.4,2.85924]
[1735121077736,0.795,3498.4,3497.5,2.85915]
[1735121077934,0.795,3498.4,3497.2,0.3597204]
[1735121077935,0.795,3498.4,3497.8,2.85891]
[1735121078609,0.795,3498.4,3497.6,0.285915]
[1735121078810,4.36461741,3498.7,3498.1,2.85868]
[1735121079013,4.36461741,3498.7,3498.2,2.85854]
[1735121079853,4.36461741,3498.7,3498.1,3.0]
[1735121080586,3.16360961,3498.7,3498.2,2.85856]